{"text_format":"1","workbook":"xlsx","n_sheets":1,"sheets":["1"],"not_rendered":{"charts":0,"images":0,"macros":1,"external_links":0,"defined_names":3,"comments":0,"pivot_tables":0},"unopened":[],"bounds":{"document_bytes":16777216,"sheet_cells":100000,"rows_first":2000,"rows_last":500,"rows_between":2000,"halvings":0,"cell_chars":16384,"cell_head_chars":4096},"cells_cut":0,"cells_raw":0,"read":"whole","date_system":"1900"}

{"sheet":"1","index":0,"n_rows":86,"n_cols":6,"rows_kept":86,"cut":false,"hidden":false,"merged":[[1,0,1,5],[16,0,16,5],[31,0,31,5]]}
["№",null,"Наименование инструкции","Дата утверждения","Дата посл.пересмотра","Срок для пересмотра"]
["Должностные инструкции"]
[1,null,"Должностная инструкция начальника службы","2014-09-01",{"$f":"D3+(365*3)","v":"2017-08-31"},"3 года"]
[2,null,"Должностная  инструкция ведущего инженера ","2014-09-01","2017-08-31","3 года"]
[3,null,"Должностная инструкция инженера 1 категории","2014-09-01","2017-08-31","3 года"]
[4,null,"Должностная инструкция инженера 1 категории","2014-09-01","2017-08-31","3 года"]
[5,null,"Должностная инструкция инженера ","2014-09-01","2017-08-31","3 года"]
[6,null,"Должностная инструкция инженера 2 категории","2014-09-01","2017-08-31","3 года"]
[7,null,"Должностная инструкция инженера 2 категории","2014-09-01","2017-08-31","3 года"]
[8,null,"Должностная инструкция инженера ","2014-09-01","2017-08-31","3 года"]
[9,null,"Должностная инструкция инженера ","2014-09-01","2017-08-31","3 года"]
[10,null,"Должностная инструкция инженера ","2014-09-01","2017-08-31","3 года"]
[11,null,"Должностная инструкция инженера 2 категории","2014-09-01","2017-08-31","3 года"]
[12,null,"Должностная инструкция инженера ","2014-09-01","2017-08-31","3 года"]
[13,null,"Должностная инструкция инженера ","2014-09-01","2017-08-31","3 года"]
[14,null,"Должностная инструкция техника ","2014-09-01",{"$f":"D16+(365*3)","v":"2017-08-31"},"3 года"]
["Инструкции по охране труда"]
[32,null,"Инструкция по ОТ для электромонтера диспетчерского оборудования и телеавтоматики","2015-03-26",{"$f":"D18+(365*5)","v":"2020-03-24"},"5 лет"]
[33,null,"Инструкция по ОТ при работе с приставных лестниц и стремянок","2015-03-25","2020-03-23","5 лет"]
[34,null,"Инструкция по ОТ при работе с ручным слесарным инструментом","2015-03-25","2020-03-23","5 лет"]
[35,null,"Инструкция по ОТ при работе с переносным электроинструментом, светильниками, ручными электрическими машинами","2015-03-25","2020-03-23","5 лет"]
[36,null,"Инструкция по ОТ для пользователей ПЭВМ в электроэнергетике","2015-03-25",{"$f":"D22+(365*5)","v":"2020-03-23"},"5 лет"]
[37,null,"Инструкция по ОТ при обслуживании и ремонте средств связи и телемеханики.","2015-03-25","2020-03-23","5 лет"]
[38,null,"Инструкция по ОТ при работе в зоне влияния электрического поля","2015-03-25",{"$f":"D24+(365*5)","v":"2020-03-23"},"5 лет"]
[39,null,"Инструкция по ОТ при выполении работ на высоте и верхолазных работ","2015-06-18","2020-06-16","5 лет"]
[40,null,"Инструкция по ОТ по защите от клещевого энцефалита.","2013-08-04","2018-08-03","5 лет"]
[41,null,"Инструкция по ОТ для рабочих люлек","2015-03-25","2020-03-23","5 лет"]
[42,null,"Инструкция по ОТ при эксплуатации, поверке, испытанию предохранительных (монтерских, спасательных) поясов, карабинов и страхующих веревок.","2013-08-04","2018-08-03","5 лет"]
[43,null,"Инструкция по ОТ при работе мегаомметром","2015-03-25","2020-03-23","5 лет"]
[44,null,"Инструкция по ОТ при оказании первой медицинской помощи","2015-03-25","2020-03-23","5 лет"]
[45,null,"Инструкция по ОТ при погрузочно-разгрузочных работах и размещении грузов","2015-03-17","2020-03-15","5 лет"]
["Инструкции по эксплуатации:"]
[46,null,"Инструкция по эксплуатации стационароного радиотерминала GSM Orgtel WT-206F","2014-06-17",{"$f":"D33+(365*3)","v":"2017-06-16"},"3 года"]
[47,null,"Инструкция по эксплуатации радиостанции-репитера «Kenwoood ТКR-820»","2014-06-17","2017-06-16","3 года"]
[48,null,"Инструкция по эксплуатации мобильной радиостанции «Kenwoood ТК-860Н»","2014-06-17","2017-06-16","3 года"]
[49,null,"Инструкция по эксплуатации носимой радиостанции «Kenwoood ТК-370G»","2014-06-17","2017-06-16","3 года"]
[50,null,"Инструкция по эксплуатации носимой радиостанции «Kenwoood ТH-F5»","2014-06-17","2017-06-16","3 года"]
[51,null,"Инструкция по эксплуатации пульта дистанционного управления базовой радиостанции «Моtоrola GM300» ","2014-06-17","2017-06-16","3 года"]
[52,null,"Инструкция по эксплуатации базовой радиостанции «Моtоrola GM300»","2014-06-17","2017-06-16","3 года"]
[53,null,"Инструкция по эксплуатации базовой радиостанции «Моtоrola GM340»                      ","2014-06-17","2017-06-16","3 года"]
[54,null,"Инструкция по эксплуатации мобильной радиостанции «Моtоrola GM 340»                      ","2014-06-17","2017-06-16","3 года"]
[55,null,"Инструкция по эксплуатации мобильной радиостанции «Моtоrola GM350»","2014-06-17","2017-06-16","3 года"]
[56,null,"Инструкция по эксплуатации носимой радиостанции «Моtоrola GР300»","2014-06-17","2017-06-16","3 года"]
[57,null,"Инструкция по эксплуатации носимой радиостанции «Mototrbro DP3400»","2014-09-15","2017-09-14","3 года"]
[58,null,"Инструкция по эксплуатации мобильной радиостанции Mototrbo DM4400","2015-03-02","2018-03-01","3 года"]
[59,null,"Инструкция по эксплуатации радиостанции-репитера «ICOM IС-FR4000»                              ","2014-06-17","2017-06-16","3 года"]
[60,null,"Инструкция по эксплуатации базовой радиостанции «ICOM IC-F310S»","2014-06-17","2017-06-16","3 года"]
[61,null,"Инструкция по эксплуатации мобильной радиостанции «ICOM IC-F310S»","2014-06-17","2017-06-16","3 года"]
[62,null,"Инструкция по эксплуатации мобильной радиостанции «ICOM IС-F211»                          ","2014-06-17","2017-06-16","3 года"]
[63,null,"Инструкция по эксплуатации носимой радиостанции «ICOM IС-F4GT»                         ","2016-01-25","2019-01-24","3 года"]
[64,null,"Инструкция по эксплуатации носимой радиостанции «ICOM IС-F11»","2014-06-17","2017-06-16","3 года"]
[65,null,"Инструкция по пользованию комплектом абонента КА 1401 при проведении селекторного совещания","2015-07-30","2018-07-29","3 года"]
[66,null,"Инструкция по эксплуатации аппаратуры селекторного совещания АСС-БР-6102","2015-03-02","2018-03-01","3 года"]
[67,null,"Инструкция по пользованию  блока распределения АСС ЦС 1202","2015-03-02",{"$f":"D54++(365*3)","v":"2018-03-01"},"3 года"]
[68,null,"Инструкция по эксплуатации оборудования системы речевого оповещения VX-2000","2015-03-02",{"$f":"D55++(365*3)","v":"2018-03-01"},"3 года"]
[69,null,"Инструкция по пользованию аппаратным комплексом руководителя КР2401 при проведении селекторного совещания","2015-03-02",{"$f":"D56++(365*3)","v":"2018-03-01"},"3 года"]
[70,null,"Инструкция по эксплуатации пульта оперативной связи МиниКом DX-500","2015-07-30",{"$f":"D57++(365*3)","v":"2018-07-29"},"3 года"]
[71,null,"Инструкция по эксплуатации  АТС Panasonic KX-TDA100","2015-03-02",{"$f":"D58++(365*3)","v":"2018-03-01"},"3 года"]
[72,null,"Инструкция по применению приложения обработки записанных сеансов \"Процессор\" комплекса \"Спрут 7.0\"","2015-03-02","2018-03-01","3 года"]
[73,null,"Инструкция по эксплуатации измерительного прибора П-321","2014-05-08","2017-05-07","3 года"]
[74,null,"Инструкция по применению трассоискателя ТИ-ТДИ","2015-07-30","2018-07-29","3 года"]
[75,null,"Инструкция по эксплуатации КСВ-метра","2014-08-26","2017-08-25","3 года"]
[76,null,"Инструкция по эксплуатации транслятора абонентского Триком АОТ12","2015-03-10","2018-03-09","3 года"]
[77,null,"Инструкция по эксплуатации транслятора станционного Триком СТ12","2015-07-30","2018-07-29","3 года"]
[78,null,"Инструкция пользователя по эксплуатации ПО \"ОИК Диспетчер\"","2016-06-17","2019-06-17","3 года"]
[79,null,"Инструкция по эксплуатации КП Исеть","2014-06-17","2017-06-16","3 года"]
[80,null,"Инструкция по эксплуатации диспетчерского щита АБК АЭС","2014-04-21","2017-04-20","3 года"]
[81,null,"Руководство пользователя ПО \"Пакетное отключение КА при вводе графика временного отключения\"","2016-07-12","2019-07-12","3 года"]
[83,null,"Инструкция по эксплуатации источника бесперебойного питания  Liebert UPStation GXT","2015-07-30","2018-07-29","3 года"]
[84,null,"Инструкция по эксплуатации источника бесперебойного питания  APC Smart- UPS","2014-09-15","2017-09-14","3 года"]
[85,null,"Инструкция по эксплуатации оборудования \"Установка Инверторная\"","2015-08-03",{"$f":"D71+(365*3)","v":"2018-08-02"},"3 года"]
[86,null,"Инструкция по эксплуатации ИБП Symmetra LX","2015-03-02","2018-03-01","3 года"]
[87,null,"Инструкция по эксплуатации ИБП EATON","2015-07-30","2018-07-29","3 года"]
[94,null,"Инструкция по эксплуатации радиорелейной линии связи Pasolink ","2015-07-30","2018-07-29","3 года"]
[95,null,"Инструкция по эксплуатации универсального PDH/SDH мультиплексора FOX 515","2013-12-25","2016-12-24","3 года"]
[96,null,"Инструкция по эксплуатации  мультиплексора Sprinter  TX-10","2015-03-02","2018-03-01","3 года"]
[97,null,"Инструкция по эксплуатации аппаратуры ВЧ-связи типа АВС","2014-09-16","2017-09-15","3 года"]
[98,null,"Инструкция по эксплуатации аппаратуры ВЧ-связи АКСТ-М","2014-09-16","2017-09-15","3 года"]
[99,null,"Инструкция по эксплуатации аппаратуры ВЧ-связи АКСТ-Ц","2014-09-23","2017-09-22","3 года"]
[100,null,"Инструкция по эксплуатации аппаратуры ВЧ-связи  серии ETL-500","2014-09-23","2017-09-22","3 года"]
[101,null,"Инструкция по эксплуатации аппаратуры ВЧ-связи  серии ETL-600","2014-09-23","2017-09-22","3 года"]
[102,null,"Инструкция по эксплуатации аппаратуры ВЧ-связи ССТМ ES100","2014-09-15","2017-09-14","3 года"]
[108,null,"Инструкция по эксплуатации дизельной генераторной установки Geko.","2015-07-30",{"$f":"D83+(365*3)","v":"2018-07-29"},"3 года"]
[109,null,"Инструкция по эксплуатации системы гарантированного электроснабжения на базе дизель-генераторной установки FG Wilson P55-1","2015-03-02",{"$f":"D84+(365*3)","v":"2018-03-01"},"3 года"]
[110,null,"Инструкция по эксплуатации Мотопомпы \"ТН 45\"","2014-06-17",{"$f":"D85+(365*3)","v":"2017-06-16"},"3 года"]
[111,null,"Инструкция по эксплуатации системы активного пожаротушения OneU Short","2015-03-02",{"$f":"D86+(365*3)","v":"2018-03-01"},"3 года"]